bitfinex/quotes_BTCUSD_20210101
["timestamp","ask_amount","ask_price","bid_price","bid_amount"]
[1609465148535,0.43171658,29480.0,29474.0,1.0181]
[1609465148731,0.495938,29479.0,29474.0,1.0181]
[1609465148934,0.96535888,29479.0,29474.0,0.8981]
[1609465149229,0.495938,29479.0,29474.0,0.8981]
[1609465149429,0.360938,29479.0,29474.0,0.8981]
[1609465149730,0.46942088,29478.0,29474.0,0.8981]
[1609465150030,0.360938,29477.0,29474.0,0.8981]
[1609465150272,0.46942088,29476.0,29474.0,0.8981]
[1609465150570,3.310938,29475.0,29474.0,0.8981]
[1609465150769,2.95,29475.0,29474.0,0.8881]
[1609465150970,3.39,29475.0,29474.0,0.8881]
[1609465151171,3.750938,29475.0,29474.0,0.8881]
[1609465151967,3.740938,29475.0,29474.0,0.8881]
[1609465152371,3.300938,29475.0,29474.0,0.8831]
[1609465152573,0.360938,29475.0,29474.0,0.8831]
[1609465152885,0.69547974,29478.0,29475.0,1.043582]
[1609465153079,0.69547974,29478.0,29477.0,0.605897]
[1609465153276,0.69547974,29478.0,29477.0,2.488997]
[1609465154104,0.69583789,29478.0,29477.0,1.488997]
[1609465154305,0.68583789,29478.0,29477.0,1.488997]
[1609465155208,0.48583789,29478.0,29477.0,2.488997]
[1609465157104,0.42083789,29478.0,29477.0,3.704027]
[1609465157305,0.42083789,29478.0,29477.0,3.694027]
[1609465157507,0.42083789,29478.0,29477.0,3.684027]
[1609465158006,0.42083789,29478.0,29477.0,2.684027]
[1609465158404,0.41583789,29478.0,29477.0,2.684027]
[1609465158709,0.41583789,29478.0,29477.0,2.468997]
[1609465159308,0.41547974,29478.0,29477.0,2.468997]
[1609465160951,1.36547974,29478.0,29477.0,2.223997]
[1609465161150,1.36547974,29478.0,29477.0,1.8631]
[1609465161355,1.95769774,29478.0,29477.0,1.8631]
[1609465161753,6.11769774,29478.0,29477.0,1.8381]
[1609465161950,6.11769774,29478.0,29477.0,0.8831]
[1609465162150,6.10269774,29478.0,29477.0,0.8831]
[1609465162349,2.65269774,29478.0,29477.0,0.8831]
[1609465162750,4.60269774,29478.0,29477.0,0.8831]
[1609465163509,5.60269774,29478.0,29468.0,0.29255928]
[1609465163714,0.360938,29474.0,29468.0,0.29085928]
[1609465163912,0.360938,29470.0,29468.0,1.29627712]
[1609465164112,5.160938,29469.0,29460.0,0.68967]
[1609465164307,0.87699996,29468.0,29460.0,1.70797]
[1609465164506,0.360938,29467.0,29460.0,1.0183]
[1609465164713,0.4,29462.0,29460.0,1.0166]
[1609465164908,5.15744522,29461.0,29457.0,0.00108458]
[1609465165110,5.160974,29458.0,29457.0,4.58e-06]
[1609465165327,0.39647122,29457.0,29455.0,1.444e-05]
[1609465165522,0.75744522,29456.0,29455.0,1.444e-05]
[1609465165823,3.45362544,29456.0,29455.0,1.444e-05]
[1609465166021,2.42644822,29456.0,29455.0,1.444e-05]
[1609465166220,3.42644822,29456.0,29455.0,1.444e-05]
[1609465166622,3.63944285,29456.0,29455.0,1.444e-05]
[1609465166827,3.63944285,29456.0,29450.0,0.1152]
[1609465166828,4.4002,29455.0,29450.0,0.10521444]
[1609465167024,4.760974,29451.0,29450.0,4.44e-06]
[1609465167263,0.75748022,29450.0,29449.0,4.44e-06]
[1609465167454,1.36974022,29450.0,29449.0,4.44e-06]
[1609465167650,2.36974022,29450.0,29449.0,4.44e-06]
[1609465167851,2.36974022,29450.0,29446.0,0.0004]
[1609465168061,0.361009,29446.0,29444.0,1.01920943]
[1609465168260,5.15748022,29445.0,29444.0,1.01920943]
[1609465168452,6.161009,29445.0,29444.0,1.01920943]
[1609465168751,6.199919,29445.0,29444.0,1.01920943]
[1609465169155,6.199919,29445.0,29444.0,0.81920943]
[1609465169355,7.124919,29445.0,29444.0,0.81920943]
[1609465169856,7.20066192,29445.0,29444.0,0.77820943]
[1609465170058,4.79647122,29444.0,29436.0,0.0004]
[1609465170261,4.4,29439.0,29434.0,0.0002]
[1609465170567,4.4,29439.0,29432.0,0.0004]
[1609465170568,0.361009,29434.0,29431.0,1.0193]
[1609465170757,5.161009,29432.0,29431.0,1.0193]
[1609465171159,0.14,29431.0,29430.0,0.0002]
[1609465171358,5.29748022,29431.0,29428.0,0.0004]
[1609465171559,5.161009,29429.0,29420.0,0.0002]
[1609465171770,1.040209,29425.0,29413.0,0.15978701]
[1609465172059,0.39647122,29423.0,29413.0,0.15978701]
[1609465172255,0.79647122,29423.0,29413.0,1.17978701]
[1609465172457,0.39647122,29421.0,29418.0,0.0002]
[1609465172663,0.361009,29420.0,29418.0,1.0202]
[1609465172876,1.361009,29420.0,29418.0,1.0202]
[1609465173075,0.361009,29420.0,29418.0,1.0202]
[1609465173380,1.50940001,29421.0,29418.0,0.60618386]
[1609465173381,1.4,29419.0,29418.0,0.60618386]
[1609465173576,1.0,29419.0,29418.0,0.96719286]
[1609465173778,1.0,29420.0,29419.0,0.081314]
[1609465173974,0.50940001,29421.0,29419.0,0.28574332]
[1609465174177,2.65,29420.0,29419.0,0.89192718]
[1609465174474,1.0,29420.0,29419.0,0.89192718]
[1609465174676,1.285,29420.0,29419.0,0.89192718]
[1609465175280,5.4,29420.0,29419.0,0.6318803]
[1609465175583,5.66112,29420.0,29419.0,0.2559023]
[1609465176185,5.66112,29420.0,29413.0,0.0004]
[1609465176186,0.39647122,29418.0,29412.0,0.361066]
[1609465176483,5.515,29419.0,29411.0,0.361087]
[1609465176484,0.39647122,29416.0,29411.0,0.361087]
[1609465176681,0.79647122,29416.0,29410.0,1.21378134]
[1609465176879,0.39647122,29417.0,29411.0,0.36109]
[1609465177081,1.0,29415.0,29411.0,1.38119]
[1609465177286,0.39647122,29415.0,29411.0,1.38119]
[1609465177487,0.59647122,29413.0,29411.0,1.0201]
[1609465177692,5.15759122,29412.0,29411.0,1.0193]
[1609465177882,5.55759122,29412.0,29411.0,1.0187]
[1609465178080,6.55759122,29412.0,29411.0,1.0171]
[1609465178495,0.14,29409.0,29406.0,0.0006]
[1609465178700,5.15759122,29407.0,29406.0,0.999]
[1609465178895,5.97759122,29407.0,29406.0,0.9338]
[1609465179082,5.97759122,29407.0,29406.0,0.9324]
[1609465179301,0.75259122,29404.0,29401.0,0.0004]
[1609465179495,1.3982,29405.0,29400.0,0.64862605]
[1609465179496,4.76112,29401.0,29400.0,0.64862605]
[1609465179685,5.35261122,29401.0,29400.0,0.64582605]
[1609465179993,5.35261122,29401.0,29389.0,0.0008]
[1609465179994,5.81019122,29401.0,29392.0,0.0008]
[1609465180202,5.81019122,29401.0,29383.0,0.22321838]
[1609465180203,0.36112,29397.0,29381.0,0.0006]
[1609465180396,6.0049221,29396.0,29379.0,1.0211]
[1609465180588,0.00203584,29389.0,29379.0,1.0211]
[1609465180789,0.4,29388.0,29380.0,0.36112]
[1609465181092,0.00203611,29383.0,29380.0,1.0107]
[1609465181286,1.01684611,29383.0,29380.0,1.0103]
[1609465181492,0.36112,29379.0,29375.0,0.0008]
[1609465181692,4.4,29378.0,29375.0,1.0213]
[1609465181886,0.4,29376.0,29375.0,1.0163]
[1609465182089,3.14051122,29376.0,29375.0,1.0063]
[1609465182319,6.60558,29376.0,29375.0,1.0055]
[1609465182723,6.72958105,29376.0,29375.0,1.0055]
[1609465183120,0.75259122,29374.0,29366.0,0.0006]
[1609465183319,0.75259122,29372.0,29367.0,0.0004]
[1609465183625,0.19739,29369.0,29366.0,1.0216]
[1609465183824,4.00259122,29367.0,29366.0,1.0216]
[1609465184023,5.55259122,29367.0,29364.0,0.0002]
[1609465184226,0.50112,29364.0,29358.0,0.0006]
[1609465184430,5.15259122,29361.0,29360.0,0.0004]
[1609465184636,0.39147122,29360.0,29354.0,0.36112]
[1609465184824,1.04234,29361.0,29354.0,0.65829091]
[1609465185022,0.39147122,29360.0,29359.0,0.36112]
[1609465185220,0.39147122,29360.0,29359.0,1.38312]
[1609465185427,1.0,29361.0,29359.0,2.38312]
[1609465185631,0.82959718,29365.0,29363.0,0.56112]
[1609465185632,1.0,29365.0,29363.0,0.56112]
[1609465185825,1.0,29366.0,29364.0,5.6]
[1609465186026,0.38656938,29365.0,29364.0,1.58312]
[1609465186230,1.0,29365.0,29364.0,1.38312]
[1609465186422,1.0,29365.0,29364.0,1.58312]
[1609465186625,1.18915,29382.0,29364.0,1.37812]
[1609465186626,0.44733552,29366.0,29364.0,1.37812]
[1609465186827,0.44733552,29366.0,29365.0,0.68475907]
[1609465187031,1.44733552,29366.0,29365.0,1.70675907]
[1609465187222,0.44733552,29366.0,29365.0,2.90675907]
[1609465187425,1.44733552,29366.0,29365.0,1.90675907]
[1609465187630,1.0,29375.0,29365.0,4.64175907]
[1609465187841,1.0,29375.0,29367.0,0.356705]
[1609465188041,0.361273,29379.0,29367.0,0.997]
[1609465188240,0.44664369,29368.0,29367.0,0.997]
[1609465188543,0.43664369,29368.0,29367.0,2.5364939]
[1609465188740,1.0,29368.0,29367.0,1.7314939]
[1609465188945,0.32559689,29369.0,29367.0,1.1747949]
[1609465189141,0.32559689,29369.0,29368.0,0.356697]
[1609465189645,0.32559689,29369.0,29368.0,0.581697]
[1609465189839,1.0,29369.0,29368.0,0.224999]
[1609465190240,1.0,29371.0,29367.0,1.1747949]
[1609465190542,3.3,29370.0,29367.0,0.5880899]
[1609465190844,0.20477,29379.0,29367.0,2.0932899]
[1609465191044,0.04024,29383.0,29367.0,2.0932899]
[1609465191045,1.0,29369.0,29368.0,1.235]
[1609465191241,0.32352775,29371.0,29368.0,1.2]
[1609465191441,0.32352775,29371.0,29369.0,1.97956112]
[1609465191739,0.32352775,29371.0,29370.0,1.5830899]
[1609465191940,0.0020194,29371.0,29370.0,1.97956112]
[1609465192150,0.3231045,29377.0,29371.0,5.4]
[1609465192351,1.0,29376.0,29372.0,1.2]
[1609465192645,1.0,29384.0,29374.0,0.70870802]
[1609465192646,1.0,29383.0,29374.0,0.70870802]
[1609465192947,1.0,29382.0,29374.0,0.7830899]
[1609465193246,1.0,29383.0,29374.0,1.7830899]
[1609465193507,1.0,29381.0,29379.0,1.0]
[1609465193700,1.0,29382.0,29380.0,4.5]
[1609465193901,1.0,29382.0,29380.0,4.8830899]
[1609465194206,0.80220629,29399.0,29382.0,0.2205721]
[1609465194405,0.80220629,29399.0,29398.0,3.99818235]
[1609465194605,0.0008,29404.0,29398.0,4.82274225]
[1609465194910,0.0008,29407.0,29398.0,4.82274225]
[1609465194911,0.0006,29407.0,29400.0,1.75]
[1609465195100,0.0008,29406.0,29401.0,0.39647122]
[1609465195304,1.0,29402.0,29401.0,0.97956112]
[1609465195604,1.0,29405.0,29401.0,0.87584297]
[1609465195804,0.9,29406.0,29402.0,1.8]
[1609465196004,1.0,29404.0,29401.0,0.23650541]
[1609465196202,0.0008,29408.0,29401.0,0.23650541]
[1609465196203,1.0,29405.0,29401.0,0.23650541]
[1609465196510,0.89932641,29403.0,29401.0,1.0204]
[1609465196808,0.0008,29408.0,29402.0,0.58572017]
[1609465196809,1.0,29407.0,29402.0,0.58572017]
[1609465197007,0.0008,29408.0,29406.0,4.69160689]
[1609465197223,0.0016,29410.0,29406.0,1.51200689]
[1609465197427,1.0,29407.0,29406.0,4.44772706]
[1609465197723,1.0,29407.0,29406.0,2.09772706]
[1609465197923,1.0,29407.0,29406.0,1.80612017]
[1609465198129,0.0008,29423.0,29409.0,4.4]
[1609465198339,0.0008,29423.0,29414.0,4.4]
[1609465198527,0.0008,29423.0,29415.0,0.58492017]
[1609465198729,0.0008,29423.0,29416.0,0.56385824]
[1609465198924,1.0,29417.0,29416.0,0.683558]
[1609465199428,1.67516452,29417.0,29416.0,0.12268151]
[1609465199630,0.67516452,29417.0,29416.0,0.12268151]
[1609465199931,0.67516452,29417.0,29416.0,0.11688151]
[1609465199932,3.56142752,29417.0,29416.0,0.11688151]
[1609465200126,3.35016452,29417.0,29416.0,0.11608151]
[1609465200324,2.80016452,29417.0,29416.0,0.11608151]
[1609465200723,1.0,29417.0,29416.0,0.11608151]
[1609465200929,0.77792414,29417.0,29416.0,0.11608151]
[1609465201225,0.25,29417.0,29416.0,0.11608151]
[1609465201425,0.67976423,29417.0,29416.0,1.61608151]
[1609465201626,1.65016452,29420.0,29416.0,1.61608151]
[1609465201927,0.0008,29418.0,29416.0,1.79577082]
[1609465202127,1.0,29419.0,29416.0,0.29577082]
[1609465202430,0.65016452,29418.0,29416.0,0.29577082]
[1609465202625,1.0,29417.0,29416.0,0.29577082]
[1609465202858,1.0,29418.0,29416.0,0.09485082]
[1609465203051,1.0,29418.0,29417.0,1.0]
[1609465203252,0.0008,29419.0,29417.0,3.09485082]
[1609465203556,0.0008,29421.0,29417.0,3.09485082]
[1609465203854,1.0,29418.0,29417.0,1.09485082]
[1609465204056,0.80016452,29418.0,29417.0,1.09485082]
[1609465204354,1.65016452,29418.0,29417.0,1.09485082]
[1609465204753,1.0,29419.0,29417.0,1.09485082]
[1609465204958,1.0,29418.0,29417.0,1.32894082]
[1609465205254,1.0,29419.0,29417.0,6.74304082]
[1609465205450,1.0,29418.0,29417.0,6.74304082]
[1609465205952,1.0,29419.0,29417.0,6.74304082]
[1609465206254,1.0,29418.0,29417.0,2.34304082]
[1609465206556,0.0008,29421.0,29417.0,2.00804082]
[1609465206557,0.9009,29419.0,29417.0,2.00804082]
[1609465206755,0.9009,29419.0,29417.0,1.77395082]
[1609465206756,0.9009,29418.0,29417.0,1.77395082]
[1609465206956,0.0008,29421.0,29417.0,1.85884082]
[1609465207156,0.9009,29418.0,29417.0,1.85884082]
[1609465207455,0.9009,29418.0,29417.0,5.29230894]
[1609465207655,0.9009,29420.0,29417.0,5.29230894]
[1609465207853,0.9009,29420.0,29418.0,0.5093]
[1609465208155,0.0016,29422.0,29419.0,0.12831894]
[1609465208354,0.0016,29424.0,29419.0,0.12831894]
[1609465208355,0.65016452,29424.0,29420.0,3.35]
[1609465208624,0.19153188,29421.0,29420.0,3.35]
[1609465208817,0.9009,29422.0,29421.0,1.79485082]
[1609465209021,0.26449792,29421.0,29420.0,0.45723188]
[1609465209217,0.25949792,29421.0,29420.0,0.45723188]
[1609465209422,1.16039792,29421.0,29420.0,1.47693188]
[1609465209620,0.24665674,29422.0,29420.0,2.99197688]
[1609465209924,1.11973359,29421.0,29420.0,0.8280249]
[1609465210119,0.21883359,29421.0,29420.0,0.65595688]
[1609465210321,2.70599811,29421.0,29420.0,0.03500747]
[1609465210528,2.70599811,29421.0,29418.0,0.5093]
[1609465210529,2.13899811,29421.0,29418.0,0.5093]
[1609465210728,0.37549264,29418.0,29417.0,0.8520714]
[1609465210923,0.37549264,29418.0,29417.0,1.8718714]
[1609465211123,0.90107639,29418.0,29417.0,1.8718714]
[1609465211325,0.24418075,29418.0,29417.0,1.8718714]
[1609465211627,1.07118075,29418.0,29417.0,3.4218714]
[1609465212022,0.22918075,29418.0,29417.0,1.8718714]
[1609465212258,1.07118075,29418.0,29417.0,1.8718714]
[1609465212422,0.22918075,29418.0,29417.0,1.8718714]
[1609465212624,1.07118075,29418.0,29417.0,1.8718714]
[1609465212927,0.87934527,29418.0,29417.0,1.8718714]
[1609465213125,0.87934527,29418.0,29417.0,1.1927714]
[1609465213126,1.72134527,29418.0,29417.0,1.1927714]
[1609465213333,5.72129666,29418.0,29417.0,1.0198]
[1609465213526,1.72129666,29418.0,29417.0,1.0198]
[1609465213828,4.80016452,29417.0,29413.0,0.5094]
[1609465214138,1.49216452,29416.0,29413.0,0.5094]
[1609465214334,0.355,29415.0,29413.0,1.5294]
[1609465214538,1.197,29415.0,29413.0,1.5294]
[1609465214737,0.842,29414.0,29413.0,1.5294]
[1609465215141,0.04407639,29418.0,29413.0,1.5294]
[1609465215339,0.842,29414.0,29413.0,1.5244]
[1609465215540,0.842,29415.0,29413.0,1.5194]
[1609465215737,0.842,29414.0,29413.0,1.5194]
[1609465215941,0.842,29414.0,29413.0,1.5054]
[1609465216340,0.84811113,29414.0,29413.0,1.5054]
[1609465216742,0.00611102,29416.0,29413.0,1.5054]
[1609465216947,0.842,29414.0,29413.0,1.71853]
[1609465217142,0.00611161,29414.0,29413.0,2.06836548]
[1609465217343,1.0057526,29414.0,29413.0,0.89047516]
[1609465217540,0.842,29414.0,29413.0,0.89047516]
[1609465218041,0.842,29416.0,29413.0,1.39487516]
[1609465218243,0.842,29414.0,29413.0,1.74471064]
[1609465218443,0.29019546,29418.0,29414.0,0.34983548]
[1609465218747,0.28407823,29418.0,29414.0,2.02218064]
[1609465218942,0.0016,29430.0,29415.0,5.35983548]
[1609465219143,0.65016452,29429.0,29416.0,0.00345614]
[1609465219344,0.65016452,29429.0,29417.0,0.21939641]
[1609465219539,0.65016452,29429.0,29417.0,0.89174157]
[1609465219762,0.14711755,29428.0,29418.0,1.0]
[1609465219962,0.14711755,29428.0,29418.0,1.80943516]
[1609465220167,0.65016452,29427.0,29422.0,0.5092]
[1609465220367,0.65016452,29427.0,29422.0,1.18154516]
[1609465220764,0.79648637,29427.0,29422.0,0.56056899]
[1609465221163,0.0016,29430.0,29422.0,0.56056899]
[1609465221365,0.65016452,29429.0,29422.0,0.56056899]
[1609465221768,0.1347357,29426.0,29422.0,0.56056899]
[1609465222068,0.65016452,29425.0,29422.0,0.55556899]
[1609465222271,1.01142752,29425.0,29424.0,0.24096697]
[1609465222469,1.29645552,29425.0,29424.0,0.79653596]
[1609465222665,0.93519252,29425.0,29424.0,0.79653596]
[1609465223067,5.69645552,29425.0,29424.0,0.79653596]
[1609465223265,5.69645552,29425.0,29424.0,1.596e-05]
[1609465223616,5.69645552,29425.0,29414.0,1.0]
[1609465223617,5.72989017,29425.0,29414.0,1.0]
[1609465223723,0.65016452,29420.0,29409.0,1.0201]
[1609465223923,0.361263,29419.0,29412.0,0.20983334]
[1609465224220,0.65016452,29418.0,29412.0,1.0201]
[1609465224416,0.13520256,29417.0,29412.0,1.0201]
[1609465224616,0.65016452,29416.0,29412.0,1.0201]
[1609465225315,0.13035158,29415.0,29412.0,1.0201]
[1609465225856,0.7805161,29415.0,29412.0,1.0201]
[1609465226057,0.65016452,29414.0,29412.0,1.0201]
[1609465226255,0.7805161,29415.0,29412.0,1.0201]
[1609465226457,2.2473697,29413.0,29412.0,0.60603161]
[1609465226656,2.0,29413.0,29412.0,0.60603161]
[1609465226857,0.23671821,29413.0,29412.0,0.60603161]
[1609465227057,2.22171821,29413.0,29412.0,0.60603161]
[1609465227256,0.57171821,29413.0,29412.0,0.80187898]
[1609465227458,0.23693895,29415.0,29412.0,0.80187898]
[1609465227659,0.65016452,29414.0,29412.0,0.80187898]
[1609465228458,3.3369769,29413.0,29412.0,0.80187898]
[1609465228758,3.98714142,29413.0,29412.0,0.80187898]
[1609465229056,1.45714142,29413.0,29412.0,0.80187898]
[1609465229279,2.0991686,29413.0,29412.0,0.80187898]
[1609465229479,1.5191686,29413.0,29412.0,0.80187898]
[1609465229678,0.87714142,29413.0,29412.0,0.80187898]
[1609465230079,0.2269769,29413.0,29412.0,0.80187898]
[1609465230882,0.23659573,29415.0,29412.0,0.80187898]
[1609465231081,1.28656227,29413.0,29412.0,0.80187898]
[1609465231286,0.23656227,29413.0,29412.0,0.80187898]
[1609465231981,1.03656227,29413.0,29412.0,0.77300898]
[1609465232185,0.62740883,29413.0,29412.0,0.77300898]
[1609465232585,0.86394376,29413.0,29412.0,0.77300898]
[1609465232789,1.51410828,29413.0,29412.0,0.77300898]
[1609465232990,5.91410828,29413.0,29412.0,0.57716161]
[1609465233289,1.51410828,29413.0,29412.0,0.57716161]
[1609465233682,2.15512831,29413.0,29412.0,0.57716161]
[1609465234387,1.51410828,29413.0,29412.0,0.57716161]
[1609465234938,3.36410828,29413.0,29412.0,0.57716161]
[1609465235343,4.50505849,29413.0,29412.0,0.57716161]
[1609465235537,4.50505849,29413.0,29412.0,0.57216161]
[1609465235841,3.86410828,29413.0,29412.0,0.57216161]
[1609465236238,2.65506061,29413.0,29412.0,0.57216161]
[1609465236438,2.33064051,29413.0,29412.0,0.57216161]
[1609465236672,1.68968818,29413.0,29412.0,0.56216161]
[1609465236842,4.48968818,29413.0,29412.0,0.55716161]
[1609465237239,1.18968818,29413.0,29412.0,0.55716161]
[1609465237746,1.1805024,29413.0,29412.0,0.55716161]
[1609465238142,0.78952366,29413.0,29412.0,0.55716161]
[1609465238985,3.13952366,29413.0,29412.0,0.53716161]
[1609465239686,1.25952366,29413.0,29412.0,0.53716161]
[1609465239983,0.78952366,29413.0,29412.0,0.53716161]
[1609465240682,0.78952366,29413.0,29412.0,0.67731852]
[1609465240884,1.83952366,29413.0,29412.0,0.67731852]
[1609465241486,0.78452366,29413.0,29412.0,0.67731852]
[1609465241884,0.78452366,29413.0,29412.0,0.2632178]
[1609465242385,0.78452366,29413.0,29412.0,0.12306089]
[1609465243985,4.63468818,29413.0,29412.0,0.12306089]
[1609465244213,1.45452366,29413.0,29412.0,0.12306089]
[1609465244711,0.54798873,29413.0,29412.0,0.12306089]
[1609465244913,2.54798873,29413.0,29412.0,0.12306089]
[1609465245111,0.7735556,29413.0,29412.0,0.12306089]
[1609465245810,0.7735556,29413.0,29412.0,0.44482341]
[1609465247811,2.6735556,29413.0,29412.0,0.44482341]
[1609465249415,3.0935556,29413.0,29412.0,0.44482341]
[1609465249832,4.9935556,29413.0,29412.0,0.44482341]
[1609465250036,3.0935556,29413.0,29412.0,0.44482341]
[1609465250637,3.71200593,29413.0,29412.0,0.44482341]
[1609465251438,3.0935556,29413.0,29412.0,0.44482341]
[1609465252140,3.0935556,29413.0,29412.0,0.58498032]
[1609465253139,3.12699025,29413.0,29412.0,0.58498032]
[1609465253677,3.0885556,29413.0,29412.0,0.58498032]
[1609465253819,1.22199025,29413.0,29412.0,0.58498032]
[1609465254027,0.7685556,29413.0,29412.0,0.58498032]
[1609465254223,0.7685556,29413.0,29412.0,0.44482341]
[1609465254224,1.41872012,29413.0,29412.0,0.44482341]
[1609465254423,1.45215477,29413.0,29412.0,0.44482341]
[1609465254631,0.65016452,29410.0,29406.0,1.0]
[1609465254832,1.50351238,29409.0,29400.0,1.5]
[1609465255029,5.80789874,29407.0,29403.0,1.0203]
[1609465255335,0.39647122,29404.0,29403.0,1.0203]
[1609465255571,0.79647122,29403.0,29400.0,0.5]
[1609465255767,0.39647122,29402.0,29400.0,1.5204]
[1609465256071,0.22533151,29402.0,29400.0,1.5204]
[1609465256266,5.44663574,29401.0,29400.0,1.5204]
[1609465256468,5.67713574,29401.0,29400.0,1.5204]
[1609465256672,6.43839874,29401.0,29400.0,1.5204]
[1609465256870,8.33449719,29401.0,29400.0,1.5204]
[1609465257569,8.33449719,29401.0,29400.0,1.51927]
[1609465257972,8.33449719,29401.0,29400.0,1.50527]
[1609465258374,8.33449719,29401.0,29392.0,0.00075298]
[1609465258375,0.361263,29398.0,29392.0,0.00075298]
[1609465258576,0.361263,29395.0,29393.0,0.83168908]
[1609465258769,1.40628422,29395.0,29393.0,0.83168908]
[1609465258975,3.63264911,29394.0,29393.0,1.85238908]
[1609465259173,3.88134241,29394.0,29393.0,1.0207]
[1609465259408,0.67970001,29397.0,29393.0,1.0207]
[1609465259606,0.39647122,29396.0,29394.0,0.34983548]
[1609465259801,0.25,29405.0,29394.0,1.19875543]
[1609465259802,0.39647122,29401.0,29394.0,1.19875543]
[1609465260099,0.39647122,29402.0,29400.0,1.34411525]
[1609465260497,0.39647122,29403.0,29400.0,1.34411525]
[1609465260900,0.315,29402.0,29400.0,1.34411525]
[1609465261098,0.7597,29405.0,29400.0,1.33911525]
[1609465261694,0.7517,29405.0,29400.0,1.33911525]
[1609465261894,0.7517,29405.0,29400.0,1.31911525]
[1609465262899,0.7467,29405.0,29400.0,1.31911525]
[1609465263604,0.7467,29405.0,29404.0,0.33898593]
[1609465263605,1.9967,29405.0,29404.0,0.33898593]
[1609465263798,1.9967,29405.0,29404.0,1.35968593]
[1609465264001,3.12864457,29405.0,29404.0,1.35968593]
[1609465264307,3.12864457,29405.0,29404.0,1.0207]
[1609465264308,3.89997829,29405.0,29404.0,1.0207]
[1609465264603,7.30852134,29405.0,29404.0,1.0207]
[1609465265024,8.30852134,29405.0,29404.0,1.0207]
[1609465265228,0.83694457,29404.0,29392.0,0.43890545]
[1609465265428,1.3741586,29403.0,29392.0,0.43890545]
[1609465265729,0.5098,29398.0,29392.0,0.43890545]
[1609465265927,0.39647122,29396.0,29392.0,1.45960545]
[1609465266124,0.39647122,29394.0,29392.0,1.45960545]
[1609465266324,0.70157,29398.0,29392.0,1.28781388]
[1609465266529,0.83694457,29397.0,29392.0,1.28781388]
[1609465266724,1.06194457,29397.0,29392.0,1.28781388]
[1609465266927,0.83694457,29396.0,29392.0,1.28781388]
[1609465267324,0.83694457,29396.0,29392.0,1.24281388]
[1609465267826,0.235,29395.0,29392.0,1.24281388]
[1609465268023,1.06694457,29395.0,29392.0,1.24281388]
[1609465268327,0.235,29395.0,29392.0,1.23781388]
[1609465268610,1.33674457,29398.0,29392.0,1.23781388]
[1609465268814,0.5048,29398.0,29392.0,1.23781388]
[1609465269009,1.33674457,29398.0,29392.0,1.22781388]
[1609465269208,0.175,29397.0,29392.0,1.22781388]
[1609465269609,0.5048,29398.0,29392.0,1.22781388]
[1609465270010,1.32674457,29398.0,29392.0,1.22781388]
[1609465270211,0.361263,29397.0,29392.0,1.22781388]
[1609465270409,0.361263,29396.0,29392.0,1.22781388]
[1609465270638,0.25,29395.0,29392.0,1.22781388]
[1609465271439,1.19320757,29394.0,29392.0,1.22781388]
[1609465271641,5.23194457,29393.0,29392.0,1.0207]
[1609465271841,5.80820757,29393.0,29392.0,1.0207]
[1609465272436,5.80820757,29393.0,29392.0,1.0157]
[1609465273239,6.20820757,29393.0,29392.0,1.0157]
[1609465273539,6.65171294,29393.0,29392.0,1.0157]
[1609465273942,1.15773422,29391.0,29387.0,0.0002]
[1609465274144,0.75773422,29389.0,29387.0,0.0002]
[1609465274452,0.75773422,29389.0,29382.0,1.121]
[1609465274453,0.39647122,29387.0,29382.0,1.121]
[1609465274643,1.19320757,29386.0,29382.0,1.121]
[1609465274846,0.361263,29384.0,29382.0,1.121]
[1609465275044,5.62841579,29383.0,29382.0,1.121]
[1609465275239,7.38967879,29383.0,29382.0,1.121]
[1609465275749,7.38967879,29383.0,29376.0,0.2193]
[1609465275750,1.59320757,29382.0,29376.0,0.2193]
[1609465275955,1.59320757,29382.0,29369.0,0.25055117]
[1609465275956,0.83194457,29375.0,29369.0,0.0002]
[1609465276221,0.83194457,29375.0,29367.0,1.0216]
[1609465276222,1.62841579,29372.0,29367.0,1.0216]
[1609465276405,0.791263,29370.0,29367.0,1.0216]
[1609465276707,5.15773422,29368.0,29367.0,1.0216]
[1609465277000,5.78338422,29368.0,29367.0,1.0216]
[1609465277199,6.61532879,29368.0,29367.0,1.0216]
[1609465277599,7.61532879,29368.0,29367.0,1.0216]
[1609465277801,6.78338422,29368.0,29367.0,1.0216]
[1609465278037,6.386913,29368.0,29367.0,1.0216]
[1609465278304,6.386913,29368.0,29367.0,1.0166]
[1609465278501,1.986913,29368.0,29367.0,1.0166]
[1609465278710,0.761263,29368.0,29367.0,0.84108011]
[1609465279010,0.08232979,29374.0,29367.0,1.00913554]
[1609465279214,0.39647122,29382.0,29367.0,1.00913554]
[1609465279215,0.08232557,29377.0,29373.0,0.20507766]
[1609465279413,0.08232557,29377.0,29374.0,0.16805543]
[1609465279614,0.08231297,29380.0,29374.0,0.88465543]
[1609465279808,0.08231297,29380.0,29379.0,0.26158344]
[1609465280032,0.361263,29380.0,29379.0,0.77818344]
[1609465280228,0.08225623,29384.0,29379.0,0.77818344]
[1609465280428,0.03343465,29392.0,29379.0,0.77318344]
[1609465280429,0.361263,29383.0,29379.0,0.77318344]
[1609465280825,0.496263,29385.0,29379.0,0.77318344]
[1609465281028,1.32820757,29385.0,29379.0,0.77318344]
[1609465281231,0.83194457,29384.0,29379.0,0.77318344]
[1609465281431,0.361263,29383.0,29379.0,0.77318344]
[1609465281627,0.82194457,29382.0,29379.0,0.77318344]
[1609465281831,0.361258,29381.0,29379.0,0.77318344]
[1609465282030,2.625,29380.0,29379.0,0.5166]
[1609465282227,0.361258,29380.0,29379.0,0.5166]
[1609465282430,2.3,29380.0,29379.0,0.5166]
[1609465282633,0.59238925,29386.0,29379.0,0.5166]
[1609465282837,0.361258,29383.0,29379.0,0.5166]
[1609465283033,0.08226753,29384.0,29379.0,0.5166]
[1609465283233,0.23269829,29385.0,29379.0,0.5166]
[1609465283529,0.786258,29384.0,29379.0,0.5166]
[1609465283947,0.425,29384.0,29379.0,0.5166]
[1609465284255,0.425,29384.0,29380.0,0.17805543]
[1609465284451,0.425,29384.0,29380.0,0.86648543]
[1609465284452,0.25,29384.0,29380.0,0.86648543]
[1609465284755,0.25,29384.0,29381.0,0.69465543]
[1609465284947,0.25,29384.0,29382.0,0.17805543]